[Event "7th Iberoamerican-ch 2019"]
[Site "Linares"]
[Date "2019.08.10"]
[Round "1.14"]
[White "Silva Rodriguez, Fernando"]
[Black "Krysa, Leandro"]
[Result "0-1"]
[ECO "C50"]
[WhiteElo "2270"]
[BlackElo "2517"]
[Annotator "ChessBase"]
[PlyCount "114"]
[EventDate "2019.08.10"]
[EventType "swiss"]
[EventCountry "ESP"]
[SourceTitle "playchess.com"]
[Source "ChessBase"]
[SourceQuality "1"]
[TimeControl "5400+30"]

1. e4 {[%emt 0:00:00]} e5 {[%emt 0:00:00]} 2. Nf3 {[%emt 0:00:00]} Nc6 {[%emt 0:00:00]} 3. Bc4 {[%emt 0:00:00]} Nf6 {[%emt 0:01:03]} 4. d3 {[%emt 0:00:00]} Bc5 {[%emt 0:00:55]} 5. c3 {[%emt 0:00:14]} d6 {[%emt 0:01:01]} 6. O-O {[%emt 0:00:13]} O-O {[%emt 0:01:22]} 7. Nbd2 {[%emt 0:00:19]} a5 {[%emt 0:00:25]} 8. h3 {[%emt 0:02:41]} Ba7 {[%emt 0:01:18]} 9. Re1 {[%emt 0:02:14]} Ne7 {[%emt 0:01:21]} 10. Nf1 {[%emt 0:02:55]} Ng6 {[%emt 0:00:45]} 11. Ng3 {[%emt 0:01:34]} c6 {[%emt 0:13:15]} 12. Bb3 {[%emt 0:05:04]} d5 {[%emt 0:01:10]} 13. Bg5 {[%emt 0:11:47]} h6 {[%emt 0:00:13]} 14. Bxf6 {[%emt 0:04:34]} Qxf6 {[%emt 0:00:05]} 15. exd5 {[%emt 0:02:45]} a4 {[%emt 0:00:53]} 16. Bxa4 {[%emt 0:01:06]} cxd5 {[%emt 0:00:08]} 17. Bb3 {[%emt 0:04:49]} Qd6 {[%emt 0:09:30]} 18. Qd2 {[%emt 0:14:02]} Be6 {[%emt 0:09:22]} 19. Kh1 {[%emt 0:07:15]} Rad8 {[%emt 0:08:22]} 20. Re2 {[%emt 0:04:33]} f6 {[%emt 0:03:12]} 21. Rd1 {[%emt 0:05:27]} Kh8 {[%emt 0:03:24]} 22. Qe1 {[%emt 0:01:52]} Nf4 {[%emt 0:07:42]} 23. Red2 {[%emt 0:00:28]} Qd7 {[%emt 0:02:16]} 24. Qf1 {[%emt 0:09:48]} g5 {[%emt 0:02:08]} 25. c4 {[%emt 0:06:29]} d4 {[%emt 0:02:02]} 26. Ne2 {[%emt 0:04:26]} Ng6 {[%emt 0:01:25]} 27. Ng3 {[%emt 0:00:38]} h5 {[%emt 0:12:06]} 28. Nxh5 {[%emt 0:04:59]} g4 {[%emt 0:03:30]} 29. Nh2 {[%emt 0:01:14]} Qh7 {[%emt 0:03:36]} 30. hxg4 {[%emt 0:02:05]} f5 {[%emt 0:00:29]} 31. gxf5 {[%emt 0:01:14]} Bxf5 {[%emt 0:03:50]} 32. Ng3 {[%emt 0:00:11]} Bb8 {[%emt 0:01:16]} 33. Kg1 {[%emt 0:00:55]} Nf4 {[%emt 0:02:06]} 34. Bc2 {[%emt 0:00:26]} Rd6 {[%emt 0:02:18]} 35. Qe1 {[%emt 0:00:39]} Rh6 {[%emt 0:00:44]} 36. Nhf1 {[%emt 0:00:27]} Rg8 {[%emt 0:01:22]} 37. f3 {[%emt 0:00:10]} Rh1+ {[%emt 0:00:37]} 38. Kf2 {[%emt 0:00:47]} Qh4 {[%emt 0:00:50]} 39. Re2 {[%emt 0:00:27]} Rxf1+ {[%emt 0:01:54]} 40. Kxf1 {[%emt 0:00:35]} Rxg3 {[%emt 0:00:09]} 41. Qf2 {[%emt 0:00:19]} Qh1+ {[%emt 0:00:55]} 42. Qg1 {[%emt 0:00:07]} Qxg1+ {[%emt 0:00:46]} 43. Kxg1 {[%emt 0:00:03]} Nxe2+ {[%emt 0:00:04]} 44. Kf2 {[%emt 0:00:04]} Rg5 {[%emt 0:00:54]} 45. Rh1+ {[%emt 0:00:15]} Kg7 {[%emt 0:00:08]} 46. Kxe2 {[%emt 0:00:05]} Rxg2+ {[%emt 0:00:02]} 47. Kd1 {[%emt 0:00:07]} Bd6 {[%emt 0:00:34]} 48. a3 {[%emt 0:00:18]} Rf2 {[%emt 0:00:54]} 49. b4 {[%emt 0:00:46]} Rxf3 {[%emt 0:00:12]} 50. Ke2 {[%emt 0:00:05]} Rg3 {[%emt 0:00:23]} 51. c5 {[%emt 0:00:36]} Be7 {[%emt 0:00:37]} 52. Kf2 {[%emt 0:00:58]} Re3 {[%emt 0:00:11]} 53. Rg1+ {[%emt 0:02:20]} Kf6 {[%emt 0:01:01]} 54. Rf1 {[%emt 0:00:46]} Kg5 {[%emt 0:00:56]} 55. Kg1 {[%emt 0:00:32]} Bf6 {[%emt 0:00:52]} 56. b5 {[%emt 0:00:44]} Bxd3 {[%emt 0:00:15]} 57. c6 {[%emt 0:00:28]} bxc6 {[%emt 0:00:26]} 0-1

[Event "7th Iberoamerican-ch 2019"]
[Site "Linares"]
[Date "2019.08.10"]
[Round "1.15"]
[White "Cuenca Jimenez, Jose Fernando"]
[Black "Diaz Mino, Pablo"]
[Result "1-0"]
[ECO "E06"]
[WhiteElo "2534"]
[BlackElo "2109"]
[Annotator "ChessBase"]
[PlyCount "87"]
[EventDate "2019.08.10"]
[EventType "swiss"]
[EventCountry "ESP"]
[SourceTitle "playchess.com"]
[Source "ChessBase"]
[SourceQuality "1"]
[TimeControl "5400+30"]

1. Nf3 {[%emt 0:00:00]} Nf6 {[%emt 0:00:00]} 2. c4 {[%emt 0:00:00]} e6 {[%emt 0:00:18]} 3. g3 {[%emt 0:00:16]} d5 {[%emt 0:00:22]} 4. d4 {[%emt 0:00:06]} Be7 {[%emt 0:00:34]} 5. Bg2 {[%emt 0:00:05]} O-O {[%emt 0:00:09]} 6. O-O {[%emt 0:00:12]} c6 {[%emt 0:00:15]} 7. Qc2 {[%emt 0:00:25]} b6 {[%emt 0:00:17]} 8. Nbd2 {[%emt 0:01:24]} Bb7 {[%emt 0:00:14]} 9. e4 {[%emt 0:00:33]} Na6 {[%emt 0:00:11]} 10. a3 {[%emt 0:01:19]} c5 {[%emt 0:01:43]} 11. exd5 {[%emt 0:00:09]} exd5 {[%emt 0:00:13]} 12. dxc5 {[%emt 0:00:11]} Nxc5 {[%emt 0:00:13]} 13. b4 {[%emt 0:00:29]} Ne6 {[%emt 0:00:25]} 14. Bb2 {[%emt 0:06:50]} Rc8 {[%emt 0:02:13]} 15. Ne5 {[%emt 0:01:01]} Qc7 {[%emt 0:03:22]} 16. Rac1 {[%emt 0:02:06]} d4 {[%emt 0:22:22]} 17. Bxb7 {[%emt 0:09:29]} Qxb7 {[%emt 0:00:08]} 18. Qf5 {[%emt 0:03:39]} Nd7 {[%emt 0:07:39]} 19. Nef3 {[%emt 0:07:53]} a5 {[%emt 0:01:57]} 20. Nxd4 {[%emt 0:14:23]} Nxd4 {[%emt 0:01:19]} 21. Bxd4 {[%emt 0:00:02]} axb4 {[%emt 0:00:30]} 22. axb4 {[%emt 0:12:30]} Bxb4 {[%emt 0:01:27]} 23. Ne4 {[%emt 0:00:37]} Rc6 {[%emt 0:09:42]} 24. Rfd1 {[%emt 0:05:51]} Nc5 {[%emt 0:15:42]} 25. Ng5 {[%emt 0:08:54]} Rg6 {[%emt 0:05:53]} 26. Rb1 {[%emt 0:00:48]} Ba3 {[%emt 0:07:29]} 27. h4 {[%emt 0:09:18]} Ne6 {[%emt 0:12:27]} 28. Ne4 {[%emt 0:06:49]} Nxd4 {[%emt 0:04:02]} 29. Rxd4 {[%emt 0:00:01]} Qc6 {[%emt 0:00:32]} 30. Rbd1 {[%emt 0:02:06]} Re6 {[%emt 0:01:21]} 31. Ng5 {[%emt 0:00:48]} g6 {[%emt 0:00:37]} 32. Qd3 {[%emt 0:00:13]} Bc5 {[%emt 0:01:33]} 33. Nxe6 {[%emt 0:00:52]} Qxe6 {[%emt 0:00:42]} 34. Rf4 {[%emt 0:02:37]} Qh3 {[%emt 0:00:36]} 35. Qf3 {[%emt 0:00:24]} h5 {[%emt 0:00:26]} 36. Qg2 {[%emt 0:00:29]} Qe6 {[%emt 0:00:16]} 37. Kh2 {[%emt 0:00:35]} Qe2 {[%emt 0:00:15]} 38. Rd7 {[%emt 0:00:57]} Qe6 {[%emt 0:00:50]} 39. Qd5 {[%emt 0:00:25]} Qe8 {[%emt 0:00:27]} 40. Kg2 {[%emt 0:01:11]} Kg7 {[%emt 0:00:20]} 41. Re4 {[%emt 0:00:17]} Qc8 {[%emt 0:00:47]} 42. g4 {[%emt 0:00:16]} hxg4 {[%emt 0:00:37]} 43. Rxg4 {[%emt 0:00:06]} Qa8 {[%emt 0:00:33]} 44. Rxf7+ {[%emt 0:00:19]} 1-0

[Event "7th Iberoamerican-ch 2019"]
[Site "Linares"]
[Date "2019.08.10"]
[Round "1.16"]
[White "Rodriguez Perez, Angel Mariano"]
[Black "Sosa, Tomas"]
[Result "0-1"]
[ECO "B24"]
[WhiteElo "2223"]
[BlackElo "2516"]
[Annotator "ChessBase"]
[PlyCount "74"]
[EventDate "2019.08.10"]
[EventType "swiss"]
[EventCountry "ESP"]
[SourceTitle "playchess.com"]
[Source "ChessBase"]
[SourceQuality "1"]
[TimeControl "5400+30"]

1. e4 {[%emt 0:00:00]} c5 {[%emt 0:00:00]} 2. Nc3 {[%emt 0:00:00]} Nc6 {[%emt 0:00:00]} 3. Bb5 {[%emt 0:00:00]} Nd4 {[%emt 0:00:01]} 4. Bc4 {[%emt 0:00:00]} g6 {[%emt 0:00:35]} 5. f4 {[%emt 0:01:29]} Bg7 {[%emt 0:00:51]} 6. Nf3 {[%emt 0:00:33]} e6 {[%emt 0:05:55]} 7. O-O {[%emt 0:00:36]} Ne7 {[%emt 0:01:03]} 8. e5 {[%emt 0:05:50]} d5 {[%emt 0:06:14]} 9. Bb5+ {[%emt 0:00:59]} Nec6 {[%emt 0:05:00]} 10. Nxd4 {[%emt 0:07:12]} cxd4 {[%emt 0:00:24]} 11. Na4 {[%emt 0:02:23]} Qa5 {[%emt 0:15:39]} 12. Bxc6+ {[%emt 0:02:14]} bxc6 {[%emt 0:00:07]} 13. b3 {[%emt 0:00:27]} c5 {[%emt 0:00:20]} 14. d3 {[%emt 0:04:16]} Bd7 {[%emt 0:01:12]} 15. Qd2 {[%emt 0:02:50]} Qxd2 {[%emt 0:10:25]} 16. Bxd2 {[%emt 0:00:09]} Bf8 {[%emt 0:00:06]} 17. Nb2 {[%emt 0:14:34]} Bb5 {[%emt 0:00:22]} 18. Rf3 {[%emt 0:01:25]} Be7 {[%emt 0:00:49]} 19. Rh3 {[%emt 0:07:24]} f6 {[%emt 0:03:14]} 20. Rc1 {[%emt 0:07:42]} fxe5 {[%emt 0:02:11]} 21. fxe5 {[%emt 0:00:15]} O-O {[%emt 0:00:09]} 22. Rf1 {[%emt 0:01:21]} Rac8 {[%emt 0:01:01]} 23. Rxf8+ {[%emt 0:00:23]} Bxf8 {[%emt 0:00:14]} 24. c4 {[%emt 0:05:58]} dxc3 {[%emt 0:02:17]} 25. Bxc3 {[%emt 0:00:07]} Bg7 {[%emt 0:00:27]} 26. Rh4 {[%emt 0:02:47]} Rc6 {[%emt 0:05:24]} 27. g3 {[%emt 0:04:02]} d4 {[%emt 0:01:49]} 28. Bd2 {[%emt 0:00:10]} Bxe5 {[%emt 0:00:11]} 29. Re4 {[%emt 0:01:27]} Bc7 {[%emt 0:04:01]} 30. Re1 {[%emt 0:02:12]} e5 {[%emt 0:01:23]} 31. Rc1 {[%emt 0:00:11]} Ba6 {[%emt 0:05:08]} 32. b4 {[%emt 0:01:52]} e4 {[%emt 0:02:18]} 33. dxe4 {[%emt 0:06:08]} c4 {[%emt 0:00:41]} 34. Bf4 {[%emt 0:00:04]} c3 {[%emt 0:02:16]} 35. Na4 {[%emt 0:00:27]} Bxf4 {[%emt 0:01:15]} 36. gxf4 {[%emt 0:00:07]} Bb5 {[%emt 0:00:32]} 37. Nc5 {[%emt 0:00:33]} d3 {[%emt 0:01:04]} 0-1

[Event "7th Iberoamerican-ch 2019"]
[Site "Linares"]
[Date "2019.08.10"]
[Round "1.17"]
[White "Salinas Herrera, Pablo"]
[Black "Jimenez Bernal, Francisco"]
[Result "1-0"]
[ECO "B84"]
[WhiteElo "2498"]
[BlackElo "2222"]
[Annotator "ChessBase"]
[PlyCount "65"]
[EventDate "2019.08.10"]
[EventType "swiss"]
[EventCountry "ESP"]
[SourceTitle "playchess.com"]
[Source "ChessBase"]
[SourceQuality "1"]
[TimeControl "5400+30"]

1. e4 {[%emt 0:00:16]} c5 {[%emt 0:00:00]} 2. Nf3 {[%emt 0:00:12]} d6 {[%emt 0:00:07]} 3. d4 {[%emt 0:00:28]} Nf6 {[%emt 0:00:41]} 4. Nc3 {[%emt 0:00:07]} cxd4 {[%emt 0:00:11]} 5. Nxd4 {[%emt 0:00:06]} a6 {[%emt 0:00:11]} 6. Be2 {[%emt 0:00:05]} e6 {[%emt 0:00:39]} 7. O-O {[%emt 0:00:45]} Be7 {[%emt 0:00:52]} 8. Be3 {[%emt 0:00:07]} O-O {[%emt 0:00:33]} 9. a4 {[%emt 0:00:08]} Qc7 {[%emt 0:00:45]} 10. f4 {[%emt 0:00:09]} Nc6 {[%emt 0:00:29]} 11. Kh1 {[%emt 0:00:05]} Re8 {[%emt 0:00:29]} 12. Bd3 {[%emt 0:00:23]} Bd7 {[%emt 0:05:43]} 13. Nf3 {[%emt 0:02:59]} Nb4 {[%emt 0:14:22]} 14. a5 {[%emt 0:00:10]} Rac8 {[%emt 0:00:58]} 15. Qe1 {[%emt 0:07:43]} d5 {[%emt 0:19:25]} 16. e5 {[%emt 0:05:07]} Ne4 {[%emt 0:00:14]} 17. Bb6 {[%emt 0:07:10]} Qb8 {[%emt 0:00:23]} 18. Bxe4 {[%emt 0:12:40]} dxe4 {[%emt 0:00:12]} 19. Qxe4 {[%emt 0:00:21]} Bc6 {[%emt 0:07:57]} 20. Qe2 {[%emt 0:00:10]} Bb5 {[%emt 0:03:05]} 21. Nxb5 {[%emt 0:00:08]} Rxc2 {[%emt 0:00:19]} 22. Qe4 {[%emt 0:00:09]} axb5 {[%emt 0:00:27]} 23. Nd4 {[%emt 0:00:06]} Rxb2 {[%emt 0:25:41]} 24. f5 {[%emt 0:00:09]} Nd5 {[%emt 0:00:28]} 25. fxe6 {[%emt 0:01:21]} fxe6 {[%emt 0:01:02]} 26. Nxe6 {[%emt 0:01:06]} Nxb6 {[%emt 0:02:37]} 27. Qf5 {[%emt 0:01:02]} Kh8 {[%emt 0:06:02]} 28. axb6 {[%emt 0:00:06]} Rg8 {[%emt 0:01:55]} 29. Rf3 {[%emt 0:02:51]} Qc8 {[%emt 0:04:21]} 30. Rg1 {[%emt 0:07:18]} Rc2 {[%emt 0:01:31]} 31. Rh3 {[%emt 0:00:14]} h6 {[%emt 0:00:53]} 32. Qg6 {[%emt 0:00:10]} Bf8 {[%emt 0:00:44]} 33. Ng5 {[%emt 0:00:06]} 1-0

[Event "7th Iberoamerican-ch 2019"]
[Site "Linares"]
[Date "2019.08.10"]
[Round "1.18"]
[White "Castillo Gallego, Sergio"]
[Black "Matamoros Franco, Carlos S."]
[Result "1/2-1/2"]
[ECO "B30"]
[WhiteElo "2203"]
[BlackElo "2498"]
[Annotator "ChessBase"]
[PlyCount "62"]
[EventDate "2019.08.10"]
[EventType "swiss"]
[EventCountry "ESP"]
[SourceTitle "playchess.com"]
[Source "ChessBase"]
[SourceQuality "1"]
[TimeControl "5400+30"]

1. e4 {[%emt 0:00:00]} c5 {[%emt 0:00:03]} 2. Nf3 {[%emt 0:00:00]} Nc6 {[%emt 0:00:23]} 3. Nc3 {[%emt 0:00:17]} g6 {[%emt 0:00:29]} 4. Bb5 {[%emt 0:00:26]} Bg7 {[%emt 0:00:19]} 5. O-O {[%emt 0:01:32]} e5 {[%emt 0:01:52]} 6. d3 {[%emt 0:02:13]} Nge7 {[%emt 0:00:18]} 7. Bg5 {[%emt 0:04:14]} h6 {[%emt 0:01:14]} 8. Be3 {[%emt 0:05:26]} Nd4 {[%emt 0:01:04]} 9. Bc4 {[%emt 0:03:29]} O-O {[%emt 0:05:42]} 10. Nd5 {[%emt 0:02:28]} d6 {[%emt 0:18:38]} 11. c3 {[%emt 0:18:10]} Ndc6 {[%emt 0:01:31]} 12. h3 {[%emt 0:07:54]} Be6 {[%emt 0:14:05]} 13. Nd2 {[%emt 0:17:30]} Bxd5 {[%emt 0:05:14]} 14. exd5 {[%emt 0:07:52]} Na5 {[%emt 0:00:12]} 15. f4 {[%emt 0:04:01]} Nxc4 {[%emt 0:14:29]} 16. dxc4 {[%emt 0:00:35]} Nf5 {[%emt 0:00:23]} 17. Qf3 {[%emt 0:01:46]} Nxe3 {[%emt 0:08:05]} 18. Qxe3 {[%emt 0:00:08]} exf4 {[%emt 0:00:21]} 19. Qxf4 {[%emt 0:01:44]} Qd7 {[%emt 0:01:03]} 20. Ne4 {[%emt 0:02:34]} Rad8 {[%emt 0:07:28]} 21. Nf6+ {[%emt 0:01:59]} Bxf6 {[%emt 0:00:05]} 22. Qxf6 {[%emt 0:00:04]} Rde8 {[%emt 0:00:21]} 23. Rae1 {[%emt 0:00:38]} a6 {[%emt 0:00:31]} 24. h4 {[%emt 0:02:23]} h5 {[%emt 0:00:22]} 25. a4 {[%emt 0:02:23]} Rxe1 {[%emt 0:01:55]} 26. Rxe1 {[%emt 0:00:14]} Qxa4 {[%emt 0:00:12]} 27. Re6 {[%emt 0:08:27]} Qd1+ {[%emt 0:15:29]} 28. Kh2 {[%emt 0:00:28]} fxe6 {[%emt 0:00:06]} 29. Qxg6+ {[%emt 0:00:32]} Kh8 {[%emt 0:00:04]} 30. Qh6+ {[%emt 0:01:07]} Kg8 {[%emt 0:00:04]} 31. Qg6+ {[%emt 0:00:37]} Kh8 {[%emt 0:00:05]} 1/2-1/2

[Event "7th Iberoamerican-ch 2019"]
[Site "Linares"]
[Date "2019.08.10"]
[Round "1.19"]
[White "Espinosa Aranda, Angel"]
[Black "Perera Borrego, Maria Adela"]
[Result "1-0"]
[ECO "A05"]
[WhiteElo "2488"]
[BlackElo "2179"]
[Annotator "ChessBase"]
[PlyCount "55"]
[EventDate "2019.08.10"]
[EventType "swiss"]
[EventCountry "ESP"]
[SourceTitle "playchess.com"]
[Source "ChessBase"]
[SourceQuality "1"]
[TimeControl "5400+30"]

1. Nf3 {[%emt 0:00:00]} Nf6 {[%emt 0:00:00]} 2. c4 {[%emt 0:00:07]} b6 {[%emt 0:00:08]} 3. g3 {[%emt 0:01:18]} Bb7 {[%emt 0:00:05]} 4. Bg2 {[%emt 0:00:05]} e5 {[%emt 0:01:20]} 5. O-O {[%emt 0:00:21]} d6 {[%emt 0:01:12]} 6. Nc3 {[%emt 0:01:07]} Be7 {[%emt 0:01:16]} 7. d4 {[%emt 0:02:49]} Nbd7 {[%emt 0:05:54]} 8. b3 {[%emt 0:09:13]} O-O {[%emt 0:01:00]} 9. Bb2 {[%emt 0:00:10]} Re8 {[%emt 0:02:00]} 10. d5 {[%emt 0:01:57]} Bf8 {[%emt 0:02:36]} 11. e4 {[%emt 0:00:11]} g6 {[%emt 0:01:53]} 12. Ne1 {[%emt 0:01:49]} Bg7 {[%emt 0:01:05]} 13. b4 {[%emt 0:04:23]} h6 {[%emt 0:05:29]} 14. Nd3 {[%emt 0:03:38]} Nh7 {[%emt 0:02:04]} 15. h4 {[%emt 0:06:25]} Ba6 {[%emt 0:01:38]} 16. Nb5 {[%emt 0:01:39]} Ndf8 {[%emt 0:05:11]} 17. h5 {[%emt 0:04:03]} Qd7 {[%emt 0:01:15]} 18. a4 {[%emt 0:00:20]} Nf6 {[%emt 0:05:03]} 19. hxg6 {[%emt 0:00:44]} fxg6 {[%emt 0:00:17]} 20. Rc1 {[%emt 0:12:04]} Re7 {[%emt 0:03:15]} 21. f4 {[%emt 0:07:37]} Bxb5 {[%emt 0:05:11]} 22. cxb5 {[%emt 0:00:40]} exf4 {[%emt 0:00:46]} 23. Nxf4 {[%emt 0:00:06]} Qe8 {[%emt 0:15:50]} 24. e5 {[%emt 0:08:57]} dxe5 {[%emt 0:06:49]} 25. d6 {[%emt 0:00:05]} cxd6 {[%emt 0:04:01]} 26. Nd5 {[%emt 0:00:09]} Rf7 {[%emt 0:06:03]} 27. Nxf6+ {[%emt 0:01:08]} Bxf6 {[%emt 0:01:24]} 28. Rxf6 {[%emt 0:00:13]} 1-0

[Event "7th Iberoamerican-ch 2019"]
[Site "Linares"]
[Date "2019.08.10"]
[Round "1.20"]
[White "Rodriguez Del Cerro, Ricardo"]
[Black "Garriga Cazorla, Pere"]
[Result "0-1"]
[ECO "A36"]
[WhiteElo "2235"]
[BlackElo "2495"]
[Annotator "ChessBase"]
[PlyCount "70"]
[EventDate "2019.08.10"]
[EventType "swiss"]
[EventCountry "ESP"]
[SourceTitle "playchess.com"]
[Source "ChessBase"]
[SourceQuality "1"]
[TimeControl "5400+30"]

1. c4 {[%emt 0:00:54]} c5 {[%emt 0:00:33]} 2. Nc3 {[%emt 0:00:44]} Nc6 {[%emt 0:00:43]} 3. g3 {[%emt 0:00:51]} g6 {[%emt 0:00:22]} 4. Bg2 {[%emt 0:00:39]} Bg7 {[%emt 0:00:09]} 5. a3 {[%emt 0:01:28]} e6 {[%emt 0:00:09]} 6. Rb1 {[%emt 0:01:21]} Nge7 {[%emt 0:00:07]} 7. b4 {[%emt 0:00:41]} d6 {[%emt 0:00:06]} 8. Nf3 {[%emt 0:00:39]} O-O {[%emt 0:00:40]} 9. O-O {[%emt 0:00:26]} Rb8 {[%emt 0:04:31]} 10. Qa4 {[%emt 0:05:22]} b6 {[%emt 0:02:46]} 11. Rd1 {[%emt 0:03:17]} Bb7 {[%emt 0:03:31]} 12. Bb2 {[%emt 0:01:15]} a6 {[%emt 0:16:44]} 13. e3 {[%emt 0:16:48]} e5 {[%emt 0:05:03]} 14. b5 {[%emt 0:21:08]} axb5 {[%emt 0:01:40]} 15. cxb5 {[%emt 0:01:56]} Na5 {[%emt 0:01:08]} 16. d4 {[%emt 0:06:15]} cxd4 {[%emt 0:01:01]} 17. exd4 {[%emt 0:00:21]} e4 {[%emt 0:00:08]} 18. Ne5 {[%emt 0:01:45]} dxe5 {[%emt 0:02:52]} 19. dxe5 {[%emt 0:01:40]} Qc8 {[%emt 0:00:09]} 20. Nxe4 {[%emt 0:03:10]} Qc4 {[%emt 0:03:08]} 21. Qxc4 {[%emt 0:02:14]} Nxc4 {[%emt 0:00:07]} 22. Rd7 {[%emt 0:01:01]} Bxe4 {[%emt 0:02:04]} 23. Bxe4 {[%emt 0:00:43]} Nxb2 {[%emt 0:00:31]} 24. Rxe7 {[%emt 0:00:54]} Nc4 {[%emt 0:00:06]} 25. Bd5 {[%emt 0:03:39]} Nxe5 {[%emt 0:00:58]} 26. Re1 {[%emt 0:02:01]} Ng4 {[%emt 0:01:25]} 27. h3 {[%emt 0:00:32]} Nf6 {[%emt 0:00:18]} 28. Bc6 {[%emt 0:00:56]} Rfd8 {[%emt 0:00:51]} 29. Ra7 {[%emt 0:01:24]} Bf8 {[%emt 0:00:32]} 30. Re2 {[%emt 0:02:10]} Bc5 {[%emt 0:00:51]} 31. Kg2 {[%emt 0:00:29]} h5 {[%emt 0:01:33]} 32. a4 {[%emt 0:01:52]} h4 {[%emt 0:00:40]} 33. a5 {[%emt 0:06:13]} bxa5 {[%emt 0:00:42]} 34. Rxa5 {[%emt 0:00:09]} hxg3 {[%emt 0:00:18]} 35. fxg3 {[%emt 0:00:17]} Rd3 {[%emt 0:00:08]} 0-1

[Event "7th Iberoamerican-ch 2019"]
[Site "Linares"]
[Date "2019.08.10"]
[Round "1.21"]
[White "Escobar Forero, Alder"]
[Black "Romero Berruezo, Francisco"]
[Result "1-0"]
[ECO "C77"]
[WhiteElo "2477"]
[BlackElo "2161"]
[Annotator "ChessBase"]
[PlyCount "103"]
[EventDate "2019.08.10"]
[EventType "swiss"]
[EventCountry "ESP"]
[SourceTitle "playchess.com"]
[Source "ChessBase"]
[SourceQuality "1"]
[TimeControl "5400+30"]

1. e4 {[%emt 0:00:00]} e5 {[%emt 0:00:00]} 2. Nf3 {[%emt 0:00:00]} Nc6 {[%emt 0:00:00]} 3. Bb5 {[%emt 0:01:09]} a6 {[%emt 0:00:20]} 4. Ba4 {[%emt 0:00:10]} Nf6 {[%emt 0:00:13]} 5. Nc3 {[%emt 0:02:31]} b5 {[%emt 0:04:42]} 6. Bb3 {[%emt 0:00:06]} Be7 {[%emt 0:00:26]} 7. d3 {[%emt 0:01:40]} O-O {[%emt 0:00:43]} 8. h3 {[%emt 0:03:19]} d6 {[%emt 0:00:58]} 9. a4 {[%emt 0:00:33]} b4 {[%emt 0:06:50]} 10. Nd5 {[%emt 0:00:11]} a5 {[%emt 0:06:52]} 11. c3 {[%emt 0:04:47]} Rb8 {[%emt 0:05:37]} 12. Be3 {[%emt 0:04:00]} bxc3 {[%emt 0:02:44]} 13. bxc3 {[%emt 0:00:11]} Ba6 {[%emt 0:01:09]} 14. Rb1 {[%emt 0:05:03]} Nd7 {[%emt 0:22:32]} 15. O-O {[%emt 0:02:48]} Nc5 {[%emt 0:17:27]} 16. Bxc5 {[%emt 0:23:29]} dxc5 {[%emt 0:00:18]} 17. Qe2 {[%emt 0:02:32]} Bd6 {[%emt 0:08:00]} 18. Ne3 {[%emt 0:06:34]} g6 {[%emt 0:03:23]} 19. Ng4 {[%emt 0:19:08]} h5 {[%emt 0:00:38]} 20. Ne3 {[%emt 0:03:06]} Kg7 {[%emt 0:00:29]} 21. Bd5 {[%emt 0:03:26]} Ne7 {[%emt 0:00:57]} 22. Bc4 {[%emt 0:00:53]} Bxc4 {[%emt 0:03:26]} 23. Nxc4 {[%emt 0:00:23]} Rxb1 {[%emt 0:00:28]} 24. Rxb1 {[%emt 0:00:07]} Nc6 {[%emt 0:01:14]} 25. Rb5 {[%emt 0:00:09]} Qa8 {[%emt 0:00:59]} 26. Qb2 {[%emt 0:00:50]} f6 {[%emt 0:04:20]} 27. Rb7 {[%emt 0:02:00]} Nd8 {[%emt 0:04:42]} 28. Rb5 {[%emt 0:05:27]} Nc6 {[%emt 0:00:08]} 29. Nfd2 {[%emt 0:00:26]} Rb8 {[%emt 0:02:11]} 30. Rxb8 {[%emt 0:00:28]} Qxb8 {[%emt 0:00:52]} 31. Qxb8 {[%emt 0:00:26]} Nxb8 {[%emt 0:00:02]} 32. Nxa5 {[%emt 0:00:11]} Kf7 {[%emt 0:00:18]} 33. Ndc4 {[%emt 0:01:15]} Be7 {[%emt 0:00:38]} 34. Ne3 {[%emt 0:01:28]} c6 {[%emt 0:01:35]} 35. g3 {[%emt 0:00:56]} Ke6 {[%emt 0:00:12]} 36. Kf1 {[%emt 0:00:12]} Kd7 {[%emt 0:00:17]} 37. Ke2 {[%emt 0:00:09]} Kc7 {[%emt 0:00:44]} 38. Nac4 {[%emt 0:01:27]} Nd7 {[%emt 0:00:27]} 39. f4 {[%emt 0:01:10]} Bf8 {[%emt 0:00:27]} 40. h4 {[%emt 0:00:37]} Bh6 {[%emt 0:01:25]} 41. Kf3 {[%emt 0:00:22]} g5 {[%emt 0:00:30]} 42. fxg5 {[%emt 0:03:31]} fxg5 {[%emt 0:00:09]} 43. hxg5 {[%emt 0:00:01]} Bxg5 {[%emt 0:00:10]} 44. Nf5 {[%emt 0:00:19]} Bf6 {[%emt 0:00:22]} 45. Nfd6 {[%emt 0:01:27]} Be7 {[%emt 0:01:04]} 46. Ne8+ {[%emt 0:00:37]} Kb7 {[%emt 0:00:28]} 47. Ng7 {[%emt 0:01:52]} Nb6 {[%emt 0:00:45]} 48. Nxb6 {[%emt 0:00:00]} Kxb6 {[%emt 0:00:00]} 49. Nxh5 {[%emt 0:00:00]} Ka5 {[%emt 0:00:00]} 50. c4 {[%emt 0:00:32]} Kxa4 {[%emt 0:00:05]} 51. Ng7 {[%emt 0:00:02]} Kb3 {[%emt 0:00:12]} 52. Ne6 {[%emt 0:00:06]} 1-0